Cogmind - Beta 16 @@@ ROGUE MODE // 2025.11.08 @ 15:54:34 Player: shapeshifter Result: Self-destructed Performance ------------- Evolutions (6) 3000 Regions Visited (14) 2800 Robots Destroyed (2) 10 Value Destroyed (63) 63 Prototype IDs (24) 480 Alien Tech Used (0) 0 Bonus (2000) 2000 TOTAL SCORE: 8353 Bonus ------- Entered Garrisons 200 Used RIF Installer 500 Entered DSFs 1000 Aligned with FarCom 300 Cogmind --------- Core Integrity 1001/1150 Matter 175/300 Energy 0/100 System Corruption 0% Temperature Cool (0) Movement Hovering (52) Location -4/Garrison Parts ------- > --- POWER (2) -------- (None) > --- PROPULSION (10) -- Antigrav Array Antigrav Array Antigrav Array Antigrav Array Antigrav Array > --- UTILITY (5) ------ Advanced Cooling System Improved Signal Interpreter Advanced Terrain Scanner Graphene Brace > --- WEAPON (2) ------- Flail > --- INVENTORY (5) ---- Cloak of Protection Medium Armor Plating Peak State ------------ > --- POWER ------------ Fission Core Improved Fusion Compressor > --- PROPULSION ------- Antigrav Array Antigrav Array Antigrav Array Antigrav Array Antigrav Array > --- UTILITY ---------- Advanced Cooling System Improved Signal Interpreter Advanced Terrain Scanner Graphene Brace > --- WEAPON ----------- Flail > --- INVENTORY -------- Cloak of Protection Medium Armor Plating [Rating: 116] Favorites ----------- Power Angular Momentum Engine Engine Angular Momentum Engine Power Core Improved Fusion Compressor Propulsion Nuclear Pulse Thruster Treads Light Treads Hover Unit Antigrav Array Flight Unit Nuclear Pulse Thruster Utility Improved Signal Interpreter Device Improved Sensor Array Processor Improved Signal Interpreter Weapon Flail Impact Weapon Flail Build | -11 -10 -10 -10 -9 -8 -7 -7 -6 -5 -5 -5 -4 -4 -4 ------- Run | Yrd Mat Min Exi Min Mat Fac DSF Fac Fac Upp Upp Fac DSF Gar Slots Evolved 12 | . . . . . 4 2 . 2 2 . . 2 . . Power 1 | . . . . . . 1 . . . . . . . . Propulsion 8 | . . . . . 3 1 . 1 1 . . 2 . . Utility 3 | . . . . . 1 . . 1 1 . . . . . Weapon . | . . . . . . . . . . . . . . . Parts Attached 30 | 2 2 . . . 10 1 1 4 1 . . . 9 . Power 5 | . . . . . 1 1 . 1 . . . . 2 . Engine 3 | . . . . . 1 1 . 1 . . . . . . Core 2 | . . . . . . . . . . . . . 2 . Reactor . | . . . . . . . . . . . . . . . Propulsion 17 | 2 . . . . 7 . 1 2 . . . . 5 . Treads 2 | 2 . . . . . . . . . . . . . . Leg . | . . . . . . . . . . . . . . . Wheel . | . . . . . . . . . . . . . . . Hover 6 | . . . . . 1 . . . . . . . 5 . Flight 9 | . . . . . 6 . 1 2 . . . . . . Utility 7 | . 1 . . . 2 . . 1 1 . . . 2 . Device 6 | . 1 . . . 1 . . 1 1 . . . 2 . Storage . | . . . . . . . . . . . . . . . Processor 1 | . . . . . 1 . . . . . . . . . Hackware . | . . . . . . . . . . . . . . . Protection . | . . . . . . . . . . . . . . . Artifact . | . . . . . . . . . . . . . . . Weapon 1 | . 1 . . . . . . . . . . . . . Energy Gun . | . . . . . . . . . . . . . . . Energy Cannon . | . . . . . . . . . . . . . . . Ballistic Gun . | . . . . . . . . . . . . . . . Ballistic Cannon . | . . . . . . . . . . . . . . . Launcher . | . . . . . . . . . . . . . . . Special Weapon . | . . . . . . . . . . . . . . . Impact Weapon 1 | . 1 . . . . . . . . . . . . . Slashing Weapon . | . . . . . . . . . . . . . . . Piercing Weapon . | . . . . . . . . . . . . . . . Special Melee Weapon . | . . . . . . . . . . . . . . . Unidentified Prototypes 1 | . . . . . 1 . . . . . . . . . Parts Lost 14 | . . . . 1 2 . 4 . . . . . 5 2 Power 4 | . . . . . . . 2 . . . . . . 2 Propulsion 9 | . . . . . 2 . 2 . . . . . 5 . Utility 1 | . . . . 1 . . . . . . . . . . Weapon . | . . . . . . . . . . . . . . . Highest Loss Streak 5 | . . . . 1 1 . 4 . . . . . 5 2 To Critical Strikes . | . . . . . . . . . . . . . . . Average Backups 4 | 1 3 5 4 5 5 3 2 2 4 5 5 5 4 2 Power 1 | . 2 2 2 2 1 . . . 1 1 1 1 . . Propulsion . | . . . . . . . . . . . . . . . Utility 2 | . . 2 1 2 2 2 2 2 3 4 4 4 3 2 Weapon . | . 1 1 1 1 1 1 . . . . . . . . Tool/Special . | . . . . . . . . . . . . . . . Unused Backups 6 | . . . 1 . . 1 . . 1 . . . 1 2 Power . | . . . . . . . . . . . . . . . Propulsion . | . . . . . . . . . . . . . . . Utility 5 | . . . 1 . . . . . 1 . . . 1 2 Weapon 1 | . . . . . . 1 . . . . . . . . Tool/Special . | . . . . . . . . . . . . . . . Average Slot Usage (%) 60 | . 34 57 57 53 55 76 68 71 68 70 70 63 49 59 Engine 3 | . . . . . 3 15 11 5 5 5 5 5 . . Treads 10 | . 28 28 28 28 8 . . . . . . . . . Hover 2 | . . . . . 4 . . . . . . . 10 26 Flight 18 | . . . . . 18 38 34 39 35 35 35 31 9 . Device 11 | . 2 14 14 10 6 7 7 12 15 17 17 15 12 15 Processor 3 | . . . . . 6 7 7 6 5 5 5 5 5 5 Impact Weapon 8 | . 4 14 14 14 9 7 7 6 5 5 5 5 5 5 Peak Build Rating 116 | 2 5 5 6 6 22 23 25 42 47 47 47 47 116 116 Average Rating 30 | 1 2 5 5 5 14 23 23 41 45 47 47 47 73 111 On Entrance 29 | . 2 5 5 6 5 22 23 23 42 47 47 47 47 116 Avg Prop Armor Cover (%) 13 | 41 39 35 35 35 15 2 2 2 2 2 2 2 2 . Naked Turns . | . . . . . . . . . . . . . . . Heaviest Build 26 | . 3 3 3 3 6 9 9 17 19 19 19 19 26 23 Greatest Support 130 | 3 3 3 3 3 16 16 16 26 26 26 26 26 130 130 Greatest Overweight (x) . | . . . . . . . . . . . . . . . Average Overweight (x) . | . . . . . . . . . . . . . . . Largest Inventory Capacity 5 | 5 5 5 5 5 5 5 5 5 5 5 5 5 5 5 Average Capacity 5 | 5 5 5 5 5 5 5 5 5 5 5 5 5 5 5 Most Carried 5 | 3 5 5 5 5 5 3 4 5 5 5 5 5 5 2 Average Carried 4 | 1 3 5 4 5 4 2 2 2 4 5 5 5 3 2 Final Capacity 5 | 5 5 5 5 5 5 5 5 5 5 5 5 5 5 5 Final Carried 5 | 3 5 5 5 5 4 2 4 3 5 5 5 5 2 2 Class Distribution -------------------- 61% | Scout 38% | Mutant Dominant Class ---------------- Mutant | -10/Materials Mutant | -10/Mines Mutant | -10/Exiles Mutant | -9/Mines Scout | -8/Materials Scout | -7/Factory Scout | -7/DSF Scout | -6/Factory Scout | -5/Factory Scout | -5/Upper Caves Scout | -5/Upper Caves Scout | -4/Factory Scout | -4/DSF Scout | -4/Garrison Resources | -11 -10 -10 -10 -9 -8 -7 -7 -6 -5 -5 -5 -4 -4 -4 ----------- Run | Yrd Mat Min Exi Min Mat Fac DSF Fac Fac Upp Upp Fac DSF Gar Matter Collected 387 | 202 . . . 33 . 100 . . . 50 . . 2 . Remotely . | . . . . . . . . . . . . . . . Salvage Created 116 | . . . . 116 . . . . . . . . . . Parts 2 | . . . . 2 . . . . . . . . . . Haulers Intercepted . | . . . . . . . . . . . . . . . Recyclers Shooed . | . . . . . . . . . . . . . . . Parts Field Recycled . | . . . . . . . . . . . . . . . Retrieved Matter . | . . . . . . . . . . . . . . . Parts Self-Destructed . | . . . . . . . . . . . . . . . Prevented . | . . . . . . . . . . . . . . . Parts Restored . | . . . . . . . . . . . . . . . Kills | -11 -10 -10 -10 -9 -8 -7 -7 -6 -5 -5 -5 -4 -4 -4 ------- Run | Yrd Mat Min Exi Min Mat Fac DSF Fac Fac Upp Upp Fac DSF Gar Combat Hostiles Destroyed 1 | . . . . 1 . . . . . . . . . . Classes Destroyed 2 | . . . . 2 . . . . . . . . . . Recycler 1 | . . . . 1 . . . . . . . . . . Grunt 1 | . . . . 1 . . . . . . . . . . Best Kill Streak 2 | . . . . 2 . . . . . . . . . . Combat Bots Only 1 | . . . . 1 . . . . . . . . . . Max Kills in Single Turn 1 | . . . . 1 . . . . . . . . . . Gunslinging . | . . . . . . . . . . . . . . . Exploded . | . . . . . . . . . . . . . . . Melee . | . . . . . . . . . . . . . . . Uniques/NPCs Destroyed . | . . . . . . . . . . . . . . . Combat | -11 -10 -10 -10 -9 -8 -7 -7 -6 -5 -5 -5 -4 -4 -4 -------- Run | Yrd Mat Min Exi Min Mat Fac DSF Fac Fac Upp Upp Fac DSF Gar Hostile Shots Fired 122 | . . . . 17 33 . 22 . 4 10 . . 11 25 Missed 48 | . . . . 2 11 . 13 . 1 7 . . 3 11 Hits 74 | . . . . 15 22 . 9 . 3 3 . . 8 14 Melee 4 | . . . . . 1 . 3 . . . . . . . Projectile 70 | . . . . 15 21 . 6 . 3 3 . . 8 14 AOE 4 | . . . . 3 . . 1 . . . . . . . Critical Strikes 5 | . . . . . . . 2 . . . . . 1 2 Actively Blocked 3 | . . . . . . . . . . . . . 1 2 Damage Taken 1762 | . . . . 270 285 . 243 78 72 58 . . 513 243 Core 466 | . . . . . 84 . 151 39 24 19 . . 117 32 Absorbed by Shields . | . . . . . . . . . . . . . . . Core Remaining (%) 92 | 100 . . . 100 84 . 78 95 . . 95 . . . Volleys Fired . | . . . . . . . . . . . . . . . Largest . | . . . . . . . . . . . . . . . Hottest . | . . . . . . . . . . . . . . . Shots Fired . | . . . . . . . . . . . . . . . Gun . | . . . . . . . . . . . . . . . Cannon . | . . . . . . . . . . . . . . . Launcher . | . . . . . . . . . . . . . . . Special . | . . . . . . . . . . . . . . . Kinetic . | . . . . . . . . . . . . . . . Thermal . | . . . . . . . . . . . . . . . Explosive . | . . . . . . . . . . . . . . . Electromagnetic . | . . . . . . . . . . . . . . . Robot Hit Streak . | . . . . . . . . . . . . . . . Robot Miss Streak . | . . . . . . . . . . . . . . . Penetration Max . | . . . . . . . . . . . . . . . Secondary Targets . | . . . . . . . . . . . . . . . Shots Hit Robots 5 | . . . . 4 1 . . . . . . . . . Core Hits . | . . . . . . . . . . . . . . . Critical Kills . | . . . . . . . . . . . . . . . Critical Parts Destroyed . | . . . . . . . . . . . . . . . Critical Strikes 1 | . . . . . 1 . . . . . . . . . Smash 1 | . . . . . 1 . . . . . . . . . Melee Attacks 25 | . 1 . . 6 6 . . 11 . 1 . . . . Impact 25 | . 1 . . 6 6 . . 11 . 1 . . . . Slashing . | . . . . . . . . . . . . . . . Piercing . | . . . . . . . . . . . . . . . Sneak Attacks 1 | . . . . 1 . . . . . . . . . . Combat Hostiles . | . . . . . . . . . . . . . . . Follow-up Attacks . | . . . . . . . . . . . . . . . Damage Inflicted 222 | . . . . 204 18 . . . . . . . . . Guns . | . . . . . . . . . . . . . . . Cannons . | . . . . . . . . . . . . . . . Explosions . | . . . . . . . . . . . . . . . Melee 222 | . . . . 204 18 . . . . . . . . . Ramming . | . . . . . . . . . . . . . . . Kinetic . | . . . . . . . . . . . . . . . Thermal . | . . . . . . . . . . . . . . . Explosive . | . . . . . . . . . . . . . . . Electromagnetic . | . . . . . . . . . . . . . . . Impact 222 | . . . . 204 18 . . . . . . . . . Slashing . | . . . . . . . . . . . . . . . Piercing . | . . . . . . . . . . . . . . . Highest Corruption 3 | . 3 3 3 3 . . . . . . . . . . Average Corruption 2 | . 2 3 3 3 . . . . . . . . . . Corruption Purged . | . . . . . . . . . . . . . . . Corruption Blocked . | . . . . . . . . . . . . . . . Effects 5 | . . 1 2 2 . . . . . . . . . . Message Errors 4 | . . . 2 2 . . . . . . . . . . Alerts 1 | . . 1 . . . . . . . . . . . . Overload Shots . | . . . . . . . . . . . . . . . Overflow Damage 53 | . . . . 53 . . . . . . . . . . Projectiles . | . . . . . . . . . . . . . . . Explosions . | . . . . . . . . . . . . . . . Melee 53 | . . . . 53 . . . . . . . . . . Knockbacks 2 | . . . . 2 . . . . . . . . . . Impact 2 | . . . . 2 . . . . . . . . . . Kinetic . | . . . . . . . . . . . . . . . Secondary . | . . . . . . . . . . . . . . . Self-Inflicted Damage . | . . . . . . . . . . . . . . . Shots . | . . . . . . . . . . . . . . . Rammed . | . . . . . . . . . . . . . . . Targets Rammed . | . . . . . . . . . . . . . . . Kicked . | . . . . . . . . . . . . . . . Crushed . | . . . . . . . . . . . . . . . Highest Temperature 5 | . . . . . 2 . . . . . . . 5 . Average Temperature 4 | . . . . . 2 . . . . . . . 5 . Received Heat Transfer 183 | . . . . 87 45 . 6 . 18 27 . . . . Siege Activations . | . . . . . . . . . . . . . . . Martial Activations . | . . . . . . . . . . . . . . . Shielding Activations . | . . . . . . . . . . . . . . . Robots Disrupted . | . . . . . . . . . . . . . . . Combat Hostiles . | . . . . . . . . . . . . . . . Robots Corrupted 1 | . . . . 1 . . . . . . . . . . Combat Hostiles 1 | . . . . 1 . . . . . . . . . . Parts Fried 3 | . . . . 3 . . . . . . . . . . Impact Corruptions 3 | . . . . 3 . . . . . . . . . . Robots Melted . | . . . . . . . . . . . . . . . Combat Hostiles . | . . . . . . . . . . . . . . . Parts Melted . | . . . . . . . . . . . . . . . Heat Transferred . | . . . . . . . . . . . . . . . Parts Sabotaged . | . . . . . . . . . . . . . . . Parts Stolen . | . . . . . . . . . . . . . . . Parts Stripped . | . . . . . . . . . . . . . . . Power Chain Reactions . | . . . . . . . . . . . . . . . Alert | -11 -10 -10 -10 -9 -8 -7 -7 -6 -5 -5 -5 -4 -4 -4 ------- Run | Yrd Mat Min Exi Min Mat Fac DSF Fac Fac Upp Upp Fac DSF Gar Maximum Alert Level . | . . . . . . . . . . . . . . . Low Security (%) 100 | 100 100 100 . 100 100 100 100 100 100 . . 100 100 100 Level 1 . | . . . . . . . . . . . . . . . Level 2 . | . . . . . . . . . . . . . . . Level 3 . | . . . . . . . . . . . . . . . Level 4 . | . . . . . . . . . . . . . . . Level 5 . | . . . . . . . . . . . . . . . High Security . | . . . . . . . . . . . . . . . Max Security . | . . . . . . . . . . . . . . . Peak Influence 65 | . 11 . . 65 36 5 3 13 . . . 11 7 45 Initial 21 | . . . . . 21 . 3 . . . . 6 7 . Average 4 | . 2 . . 13 12 . 1 2 . . . 9 1 9 Influence Increases 230 | . 11 . . 80 34 5 . 35 . 15 . 5 . 45 Destroy 0b10 Robot/C 20 | . . . . 20 . . . . . . . . . . Destroy 0b10 Robot/NC 5 | . . . . 5 . . . . . . . . . . Destroy Leader 10 | . . . . 10 . . . . . . . . . . Successful Hack 64 | . 11 . . . 17 5 . 26 . . . 5 . . Disable Machine 15 | . . . . . 15 . . . . . . . . . Destroy Structure 11 | . . . . . 2 . . 9 . . . . . . Lose Combat Pursuer 105 | . . . . 45 . . . . . 15 . . . 45 Influence Decreases 195 | . 11 . . 25 89 . 5 35 . . 4 5 11 10 Entered New Map 49 | . . . . . 34 . 2 . . . 4 5 4 . Time Decay 102 | . 11 . . 20 36 . . 35 . . . . . . Lost Part 44 | . . . . 5 19 . 3 . . . . . 7 10 Squads Dispatched 6 | . . . . . 1 . 1 2 1 . . 1 . . Investigation 3 | . . . . . 1 . . . 1 . . 1 . . Extermination 1 | . . . . . . . . 1 . . . . . . Reinforcement 2 | . . . . . . . 1 1 . . . . . . Assault . | . . . . . . . . . . . . . . . Garrison . | . . . . . . . . . . . . . . . Intercept . | . . . . . . . . . . . . . . . Searches Triggered . | . . . . . . . . . . . . . . . Construction Impeded . | . . . . . . . . . . . . . . . Haulers Reinforced . | . . . . . . . . . . . . . . . Active Scanning Responses . | . . . . . . . . . . . . . . . Cargo Convoy Interrupts . | . . . . . . . . . . . . . . . Stealth | -11 -10 -10 -10 -9 -8 -7 -7 -6 -5 -5 -5 -4 -4 -4 --------- Run | Yrd Mat Min Exi Min Mat Fac DSF Fac Fac Upp Upp Fac DSF Gar Distress Signals 2 | . . . . 2 . . . . . . . . . . Communications Jammed . | . . . . . . . . . . . . . . . Distress Signals . | . . . . . . . . . . . . . . . Times Spotted 48 | . 2 . . 16 7 . 5 2 2 5 . . 1 8 Peak Tracking Total 20 | . 2 . . 20 7 . 5 2 2 5 . . 1 8 Tactical Retreats 6 | . . . . 4 . . . . . 1 . . . 1 Traps | -11 -10 -10 -10 -9 -8 -7 -7 -6 -5 -5 -5 -4 -4 -4 ------- Run | Yrd Mat Min Exi Min Mat Fac DSF Fac Fac Upp Upp Fac DSF Gar Traps Triggered 7 | . 3 . . . . . . 3 1 . . . . . Indirectly . | . . . . . . . . . . . . . . . Trap Hack Attempts . | . . . . . . . . . . . . . . . Triggered . | . . . . . . . . . . . . . . . Disarmed . | . . . . . . . . . . . . . . . Reprogrammed . | . . . . . . . . . . . . . . . Reused . | . . . . . . . . . . . . . . . Traps Extracted . | . . . . . . . . . . . . . . . Installed . | . . . . . . . . . . . . . . . Triggered . | . . . . . . . . . . . . . . . Machines | -11 -10 -10 -10 -9 -8 -7 -7 -6 -5 -5 -5 -4 -4 -4 ---------- Run | Yrd Mat Min Exi Min Mat Fac DSF Fac Fac Upp Upp Fac DSF Gar Machines Disabled 1 | . . . . . 1 . . . . . . . . . Max in Single Turn 1 | . . . . . 1 . . . . . . . . . Machines Repaired . | . . . . . . . . . . . . . . . Machines Dismantled . | . . . . . . . . . . . . . . . Machines Sabotaged . | . . . . . . . . . . . . . . . Overloaded Fab Kills . | . . . . . . . . . . . . . . . Hacking | -11 -10 -10 -10 -9 -8 -7 -7 -6 -5 -5 -5 -4 -4 -4 --------- Run | Yrd Mat Min Exi Min Mat Fac DSF Fac Fac Upp Upp Fac DSF Gar Machines Accessed 15 | . 2 1 2 . 3 1 . 4 . . . 2 . . Terminals 12 | . 2 1 . . 3 1 . 3 . . . 2 . . Fabricators 1 | . . . . . . . . 1 . . . . . . Repair Stations . | . . . . . . . . . . . . . . . Recycling Units . | . . . . . . . . . . . . . . . Scanalyzers . | . . . . . . . . . . . . . . . Garrison Access . | . . . . . . . . . . . . . . . Total Hacks 43 | . 7 1 2 . 8 2 . 12 . . . 11 . . Successful 18 | . 3 1 2 . 2 1 . 6 . . . 3 . . Failed 25 | . 4 . . . 6 1 . 6 . . . 8 . . Catastrophic 6 | . 2 . . . 2 . . 1 . . . 1 . . Database Lockouts . | . . . . . . . . . . . . . . . Manual 28 | . 7 . 1 . 4 . . 9 . . . 7 . . Terminals 40 | . 7 1 . . 8 2 . 11 . . . 11 . . Fabricators 1 | . . . . . . . . 1 . . . . . . Repair Stations . | . . . . . . . . . . . . . . . Recycling Units . | . . . . . . . . . . . . . . . Scanalyzers . | . . . . . . . . . . . . . . . Garrison Access . | . . . . . . . . . . . . . . . Terminal Hacks 12 | . 1 1 2 . 1 1 . 4 . . . 2 . . Record 1 | . . . 1 . . . . . . . . . . . Open DSF 2 | . . . . . . 1 . . . . . 1 . . Branch Access Points 1 | . . . . . . . . 1 . . . . . . Zone Layout 7 | . 1 1 . . 1 . . 3 . . . 1 . . Proto ID Catalog 1 | . . . 1 . . . . . . . . . . . Fabricator Hacks . | . . . . . . . . . . . . . . . Repair Station Hacks . | . . . . . . . . . . . . . . . Recycling Unit Hacks . | . . . . . . . . . . . . . . . Scanalyzer . | . . . . . . . . . . . . . . . Garrison Access Hacks . | . . . . . . . . . . . . . . . Unauthorized Hacks 6 | . 2 . . . 1 . . 2 . . . 1 . . Terminals 5 | . 2 . . . 1 . . 1 . . . 1 . . Botnet 5 | . 2 . . . 1 . . 1 . . . 1 . . Fabricators 1 | . . . . . . . . 1 . . . . . . Liberate 1 | . . . . . . . . 1 . . . . . . Repair Stations . | . . . . . . . . . . . . . . . Recycling Units . | . . . . . . . . . . . . . . . Scanalyzers . | . . . . . . . . . . . . . . . Garrison Access . | . . . . . . . . . . . . . . . Data Cores Recovered . | . . . . . . . . . . . . . . . Used . | . . . . . . . . . . . . . . . Hacking Detections 10 | . 2 . . . 3 . . 3 . . . 2 . . Full Trace Events 2 | . . . . . 1 . . . . . . 1 . . Feedback Events . | . . . . . . . . . . . . . . . Feedback Blocked . | . . . . . . . . . . . . . . . Robot Schematics Acquired . | . . . . . . . . . . . . . . . Robots Built . | . . . . . . . . . . . . . . . Authchips . | . . . . . . . . . . . . . . . Time . | . . . . . . . . . . . . . . . Total Robot Build Rating . | . . . . . . . . . . . . . . . Part Schematics Acquired . | . . . . . . . . . . . . . . . Parts Built . | . . . . . . . . . . . . . . . Authchips . | . . . . . . . . . . . . . . . Time . | . . . . . . . . . . . . . . . Total Part Build Rating . | . . . . . . . . . . . . . . . Part Studies Acquired . | . . . . . . . . . . . . . . . Parts Repaired . | . . . . . . . . . . . . . . . Time . | . . . . . . . . . . . . . . . Parts Recycled . | . . . . . . . . . . . . . . . Recycled Matter . | . . . . . . . . . . . . . . . Retrieved Matter . | . . . . . . . . . . . . . . . Retrieved Components . | . . . . . . . . . . . . . . . Parts Scanalyzed . | . . . . . . . . . . . . . . . Part Schematics Acquired . | . . . . . . . . . . . . . . . Parts Damaged . | . . . . . . . . . . . . . . . Bothacking | -11 -10 -10 -10 -9 -8 -7 -7 -6 -5 -5 -5 -4 -4 -4 ------------ Run | Yrd Mat Min Exi Min Mat Fac DSF Fac Fac Upp Upp Fac DSF Gar Used RIF Installer 1 | . . . . . . . . . . . . . . 1 Robots Hacked . | . . . . . . . . . . . . . . . Non-combat . | . . . . . . . . . . . . . . . Combat . | . . . . . . . . . . . . . . . Robot Hacks Applied . | . . . . . . . . . . . . . . . Relay Couplers Released . | . . . . . . . . . . . . . . . Fabnet Peak Effective % . | . . . . . . . . . . . . . . . Robots Rewired . | . . . . . . . . . . . . . . . Allies Hacked . | . . . . . . . . . . . . . . . Hacks Repelled . | . . . . . . . . . . . . . . . Allies | -11 -10 -10 -10 -9 -8 -7 -7 -6 -5 -5 -5 -4 -4 -4 -------- Run | Yrd Mat Min Exi Min Mat Fac DSF Fac Fac Upp Upp Fac DSF Gar Total Allies 2 | . . . . . . . . 2 . . . . . . Largest Group 2 | . . . . . . . . 2 . . . . . . Highest-Rated Group 64 | . . . . . . . . 64 . . . . . . Highest-Rated Ally 32 | . . . . . . . . 32 . . . . . . Total Orders . | . . . . . . . . . . . . . . . Ally Attacks . | . . . . . . . . . . . . . . . Total Damage . | . . . . . . . . . . . . . . . Kills . | . . . . . . . . . . . . . . . Allies Corrupted . | . . . . . . . . . . . . . . . Allies Melted . | . . . . . . . . . . . . . . . Intel | -11 -10 -10 -10 -9 -8 -7 -7 -6 -5 -5 -5 -4 -4 -4 ------- Run | Yrd Mat Min Exi Min Mat Fac DSF Fac Fac Upp Upp Fac DSF Gar Active Infowar (turns) 865 | . 10 75 104 79 71 11 29 200 81 86 8 13 57 41 Sensors 499 | . . . . . 71 11 29 200 81 86 8 13 . . Terrain 465 | . . . . . . . . 179 81 86 8 13 57 41 Seismic 268 | . 10 75 104 79 . . . . . . . . . . Robot Analysis Total . | . . . . . . . . . . . . . . . Derelict Logs Recovered 3 | . . 1 . 1 . . . . . 1 . . . . Drone Launches . | . . . . . . . . . . . . . . . Drone Recoveries . | . . . . . . . . . . . . . . . Exploration | -11 -10 -10 -10 -9 -8 -7 -7 -6 -5 -5 -5 -4 -4 -4 ------------- Run | Yrd Mat Min Exi Min Mat Fac DSF Fac Fac Upp Upp Fac DSF Gar Turns Passed 986 | 23 64 75 104 105 89 11 29 200 81 86 8 13 57 41 Spaces Moved 2380 | 32 112 138 205 179 155 35 91 558 289 322 28 50 95 91 Core 722 | 32 112 138 205 179 56 . . . . . . . . . Treads . | . . . . . . . . . . . . . . . Legs . | . . . . . . . . . . . . . . . Wheels . | . . . . . . . . . . . . . . . Hover 140 | . . . . . . . . . . . . . 49 91 Flight 1518 | . . . . . 99 35 91 558 289 322 28 50 46 . Fastest Speed 26 | 50 50 50 50 50 26 26 26 26 26 26 26 26 26 44 Average Speed 34 | 50 50 50 50 50 36 26 27 26 26 26 26 26 38 44 Slowest Speed 60 | 50 50 50 50 50 55 26 30 30 26 26 26 26 60 44 Overloaded Moves . | . . . . . . . . . . . . . . . Propulsion Burnouts . | . . . . . . . . . . . . . . . Robots Hopped 7 | . . . . . 1 . 1 1 4 . . . . . Potential Cave-ins . | . . . . . . . . . . . . . . . Cave-ins Triggered . | . . . . . . . . . . . . . . . Exploration Rate (%) 32 | 3 27 31 58 51 24 2 84 26 12 55 6 2 82 23 Regions Visited 14 Branch Regions 5 Pre-discovered Areas 3 | . . 1 1 1 . . . . . . . . . . Known Exits Taken 7 | . . . . . 1 1 . 1 1 1 1 1 . . Unknown Exits Taken 5 | 1 1 1 1 1 . . . . . . . . . . Scrap Searched 2 | . . . . 1 . . . . . 1 . . . . Spaces Dug 12 | . . . . . 2 . . 9 . 1 . . . . Terrain Destroyed 12 | . . . . . 2 . . 9 . 1 . . . . Melee 12 | . . . . . 2 . . 9 . 1 . . . . Projectile . | . . . . . . . . . . . . . . . AOE . | . . . . . . . . . . . . . . . Terrain Rammed . | . . . . . . . . . . . . . . . Walls Destroyed . | . . . . . . . . . . . . . . . Machines Disabled . | . . . . . . . . . . . . . . . Actions | -11 -10 -10 -10 -9 -8 -7 -7 -6 -5 -5 -5 -4 -4 -4 --------- Run | Yrd Mat Min Exi Min Mat Fac DSF Fac Fac Upp Upp Fac DSF Gar Total 2477 | 38 116 143 206 184 173 36 93 594 290 322 27 49 115 91 Wait 9 | . . 6 . . 1 . . . . . . . 2 . Move 2352 | 31 111 137 204 178 152 34 88 555 280 321 27 49 94 91 Hop 7 | . . . . . 1 . 1 1 4 . . . . . Pick Up 22 | 5 2 . 1 . 1 . 3 3 4 . . . 3 . Fast Attach 15 | . 2 . . . 8 . . . . . . . 5 . Attach 16 | 2 . . . . 2 1 1 4 1 . . . 5 . Detach . | . . . . . . . . . . . . . . . Swap . | . . . . . . . . . . . . . . . Drop 11 | . . . 1 . 2 1 . . 1 . . . 6 . Fire . | . . . . . . . . . . . . . . . Melee 25 | . 1 . . 6 6 . . 11 . 1 . . . . Ram . | . . . . . . . . . . . . . . . Kick . | . . . . . . . . . . . . . . . Crush . | . . . . . . . . . . . . . . . Escape Stasis 20 | . . . . . . . . 20 . . . . . . Rewire . | . . . . . . . . . . . . . . . Trap . | . . . . . . . . . . . . . . . Miscellaneous . | . . . . . . . . . . . . . . . Route ------- -11/Scrapyard -10/Materials (discovered 2 exits: [*Mat] / *Min) -10/Mines (discovered 2 exits: [*Mat] / *Exi) -10/Exiles -9/Mines -8/Materials -7/Factory -7/DSF -6/Factory (discovered 3 exits: *Fac / Low x2) -5/Factory -5/Upper Caves -5/Upper Caves -4/Factory -4/DSF -4/Garrison History --------- Turn | Location | Event 10 | -11/Scrapyard | Discovered new exit (range 16) 24 | -11/Scrapyard | Entered Materials 85 | -10/Materials | Discovered new exit (range 7) 87 | -10/Materials | Discovered new exit (range 10) 88 | -10/Materials | Entered Mines 109 | -10/Mines | Discovered new exit (range 6) 161 | -10/Mines | Deemed a non-threat by the Exiles lab entrance 161 | -10/Mines | Discovered new exit (range 5) 163 | -10/Mines | Entered Exiles 176 | -10/Exiles | Met 8R-AWN 184 | -10/Exiles | Met EX-HEX 199 | -10/Exiles | Met EX-BIN 205 | -10/Exiles | Aligned with FarCom system 205 | -10/Exiles | Given EX-Vault access code 217 | -10/Exiles | Opened EX-Vault 220 | -10/Exiles | Found Cloak of Protection 232 | -10/Exiles | Warned to stay clear of 0b10 Research branches 245 | -10/Exiles | Met EX-DEC 247 | -10/Exiles | Learned location of Zion (-7) 262 | -10/Exiles | Discovered new exit (range 12) 267 | -10/Exiles | Left Exiles lab with Cloak of Protection 267 | -10/Exiles | Entered Mines 278 | -9/Mines | Assembled infested the area 309 | -9/Mines | Found a Scrap Suit stashed away for nefarious purposes 316 | -9/Mines | Build established: Mutant 363 | -9/Mines | Received a Rocket Launcher from a helpful Derelict 365 | -9/Mines | Discovered new exit (range 8) 372 | -9/Mines | Entered Materials 372 | -8/Materials | Evolved 4 slots: Propulsion x3, Utility x1 458 | -8/Materials | Discovered new exit (range 7) 461 | -8/Materials | Identified exit to Factory 461 | -8/Materials | Entered Factory 461 | -7/Factory | Evolved 2 slots: Power x1, Propulsion x1 471 | -7/Factory | Identified exit to DSF 472 | -7/Factory | Entered DSF 492 | -7/DSF | Additional patrols routed to DSF 497 | -7/DSF | Discovered new exit (range 14) 501 | -7/DSF | Identified exit to Factory 501 | -7/DSF | Entered Factory 501 | -6/Factory | Evolved 2 slots: Propulsion x1, Utility x1 528 | -6/Factory | Lost 4 parts (2p2n) 668 | -6/Factory | Identified exit to Lower Caves 676 | -6/Factory | Build established: Scout 679 | -6/Factory | Discovered new exit (range 11) 701 | -6/Factory | Identified exit to Factory 701 | -6/Factory | Entered another Factory area 701 | -5/Factory | Evolved 2 slots: Propulsion x1, Utility x1 779 | -5/Factory | Discovered new exit (range 12) 782 | -5/Factory | Identified exit to Upper Caves 782 | -5/Factory | Entered Upper Caves 867 | -5/Upper Caves | Discovered new exit (range 6) 868 | -5/Upper Caves | Identified exit to Upper Caves 868 | -5/Upper Caves | Entered another Upper Caves area 869 | -5/Upper Caves | Discovered new exit (range 13) 875 | -5/Upper Caves | Identified exit to Factory 876 | -5/Upper Caves | Entered Factory 876 | -4/Factory | Evolved 2 slots: Propulsion x2 889 | -4/Factory | Identified exit to DSF 889 | -4/Factory | Entered DSF 911 | -4/DSF | Additional patrols routed to DSF 935 | -4/DSF | Lost 5 parts (5n) 940 | -4/DSF | Discovered new exit (range 12) 945 | -4/DSF | Identified exit to Garrison 946 | -4/DSF | Entered Garrison 972 | -4/Garrison | Installed Relay Interface Framework 980 | -4/Garrison | Triggered checkpoint 987 | -4/Garrison | Self-destructed Last Messages --------------- 00922_ Dropped VTOL Module. 00923_ Acquired Antigrav Array. 00925_ Acquired 2 matter. 00927_ Knocked back. 00940_ EXIT=FOUND 00945_ EXIT=IDENTIFIED: GARRISON LOCATION=GARRISON GOAL=ESCAPE 00946_ Receiving FarCom transmissions... 00954_ Penetrated by Slug. 00954_ Fission Core destroyed. 00954_ Penetrated by Slug. Initiating installation procedure... 00972_ Relay Interface Framework installed. [Achievement: Late Bloomer] 00982_ Imp. Fusion Compressor destroyed. 00984_ Slug penetrates Wall. 00984_ Penetrated by Slug. 00986_ Slug penetrates H-77 Assassin. 00986_ Penetrated by Slug. Map ----- +----------------------------------------------------+ | ?????????????????????# #???????????????????????? | | ?????????????????????# #???????????????????????? | | ?????????????????????# #???????????????????????? | | ?????????????????????# #???????????????????????? | | ?????????????????????# #???????????????????????? | | ?????????????????????# #???????????????????????? | | ?????????????????????# #???????????????????????? | | ?????????????????????# #???????????????????????? | | ?????????????????????# #???????????????????????? | | ?????????????????????# #???????????????????????? | | ?????????????????????# #???????????????????????? | | ?????????????????????# #??????????????????? #??? | | ??????????????######## #############""""## ##?? | | ??????????????#"""" ## #?? | | ??????????????#" ?? | | ??????????????#"""" ## ?? | | ??????????????################### ## #??? #?? | | ??????????????????????????????### ## ## #?? | | ??????????????????????????????# "?? | | ??????????????????????????????# ^ "?? | | ??????????????????????????????# "?? | | ??????????????????????????????# "?? | | ??????????????????????????????### ## ## #?? | | ??????????????????????########### ## ##?? #?? | | ??????????????????????# ss ?? | | ??????????????????????# h@ s s ?? | | ??????????????????????# ######## #?? | | ??????????????????????# ???????######""""## ##?? | | ??????????????????????#h????????????????gg??? #??? | | ??????????????????????# ?????????????????????????? | | ??????????????????????#??????????????????????????? | | ?????????????????????????????????????????????????? | | ?????????????????????????????????????????????????? | | ?????????????????????????????????????????????????? | | ?????????????????????????????????????????????????? | | ?????????????????????????????????????????????????? | | ?????????????????????????????????????????????????? | | ?????????????????????????????????????????????????? | | ?????????????????????????????????????????????????? | | ?????????????????????????????????????????????????? | | ?????????????????????????????????????????????????? | | ?????????????????????????????????????????????????? | | ?????????????????????????????????????????????????? | | ?????????????????????????????????????????????????? | | ?????????????????????????????????????????????????? | | ?????????????????????????????????????????????????? | | ?????????????????????????????????????????????????? | | ?????????????????????????????????????????????????? | | ?????????????????????????????????????????????????? | | ?????????????????????????????????????????????????? | +----------------------------------------------------+ Best States ------------- Heat Dissipation 74 Energy Generation 48 Energy Capacity 310 Matter Stores 300 Matter Capacity 300 Sight Range 16 Robot Scan Range 15 Terrain Scan Range 20 Terrain Scan Density 10 Evasion (%) 64 Item Schematics ----------------- None Robot Schematics ------------------ None Fabricated ------------ Nothing Repaired ---------- Nothing Studied --------- None Alien Tech Used ----------------- None Achievements -------------- Late Bloomer Challenges ------------ None Game ------ Seed RagnarokBoreRedistributor Manual? 0 Play Time 00:18:39 Cumulative 482.7 hours Start 2025.11.08 @ 15:36:32 End 2025.11.08 @ 15:54:34 Sessions 1 Manual Loads 0 Difficulty Rogue Special Mode None Game No. 629 Rogue 629 Adventurer 0 Explorer 0 Win Type - Total 15 Types 7/0/2/2/1/0/2/1/0/0 Lore% 90 Gallery% 85 Achievement% 64 Wizard Run 0 Options --------- Layout 2 ASCII 0 Keyboard 0 Movement Mouse Keybinds 0 Fullscreen 1 Font 24/Smallcaps Map View 50x49 Zoom Use 0% Tactical HUD 1 Map Filters NONE Filters NONE Steam 1 RUN: 3d806745-8ddf-4d9a-a5e8-371d74ca92e8